bitfinex/quotes_BTCUSD_20240701
["timestamp","ask_amount","ask_price","bid_price","bid_amount"]
[1719871531238,0.00861,63182.0,63181.0,2.09230604]
[1719871531973,0.00861,63182.0,63181.0,2.07465536]
[1719871532394,0.00861,63182.0,63181.0,2.16958181]
[1719871532799,0.00861,63182.0,63181.0,2.07557936]
[1719871533210,0.00861,63182.0,63181.0,2.17050581]
[1719871533427,0.14921,63182.0,63181.0,1.78945581]
[1719871533624,0.14921,63182.0,63181.0,1.80650258]
[1719871533829,0.14921,63182.0,63181.0,1.80650148]
[1719871534029,0.14921,63182.0,63181.0,1.77668004]
[1719871534366,0.08671,63182.0,63181.0,1.77668004]
[1719871534565,0.00861,63182.0,63181.0,1.84789101]
[1719871534701,0.00861,63182.0,63181.0,2.07557936]
[1719871534902,0.00861,63182.0,63181.0,2.09323004]
[1719871535531,0.00861,63182.0,63181.0,2.188178]
[1719871535930,0.00861,63182.0,63181.0,2.09323004]
[1719871536918,0.00861,63182.0,63181.0,2.09728974]
[1719871537129,0.00084,63188.0,63187.0,1.18997068]
[1719871537497,0.00084,63188.0,63187.0,1.75632966]
[1719871537698,0.00084,63188.0,63187.0,1.85632966]
[1719871537820,0.00084,63188.0,63187.0,1.83867898]
[1719871538235,0.00084,63188.0,63187.0,1.85632966]
[1719871538653,0.00084,63188.0,63187.0,1.79182966]
[1719871539274,0.00084,63188.0,63187.0,1.78817898]
[1719871539473,0.00084,63188.0,63187.0,1.28415898]
[1719871539474,0.48051621,63188.0,63187.0,1.28415898]
[1719871539914,0.51317653,63188.0,63187.0,1.29515898]
[1719871540453,0.54234441,63188.0,63187.0,1.28603739]
[1719871540655,0.48051621,63188.0,63187.0,1.30003739]
[1719871541096,0.50976742,63188.0,63187.0,1.30003739]
[1719871541955,0.50976742,63188.0,63187.0,1.29805898]
[1719871542436,0.50976742,63188.0,63187.0,1.29795898]
[1719871542563,0.17419121,63188.0,63187.0,1.29795898]
[1719871542974,0.06275153,63188.0,63187.0,1.29795898]
[1719871543172,0.03350032,63188.0,63187.0,1.32095898]
[1719871543458,0.03350032,63188.0,63187.0,1.38545898]
[1719871543606,0.00084,63188.0,63187.0,1.43293886]
[1719871543790,0.00084,63188.0,63187.0,1.43293819]
[1719871543986,0.04058932,63188.0,63187.0,1.38545898]
[1719871544198,0.04058932,63188.0,63187.0,1.43293819]
[1719871544403,0.04058932,63188.0,63187.0,1.3921778]
[1719871544619,0.04058932,63188.0,63187.0,1.4566778]
[1719871545207,0.33641621,63188.0,63187.0,1.3921778]
[1719871545430,0.00084,63188.0,63187.0,1.38545898]
[1719871545872,0.00084,63188.0,63187.0,1.38535898]
[1719871547009,0.04058932,63188.0,63187.0,1.38535898]
[1719871547118,0.04058932,63188.0,63187.0,1.38525898]
[1719871548482,0.33641621,63188.0,63187.0,1.32075898]
[1719871548659,0.04058932,63188.0,63187.0,1.38525898]
[1719871548853,0.00084,63188.0,63187.0,1.38525898]
[1719871549181,0.02824,63188.0,63187.0,1.38515898]
[1719871549505,0.33641621,63188.0,63187.0,1.38515898]
[1719871551329,0.00084,63188.0,63187.0,1.38515898]
[1719871551664,0.00084,63188.0,63187.0,1.43262776]
[1719871552268,0.00084,63188.0,63187.0,1.45027844]
[1719871552671,0.00084,63188.0,63187.0,1.45017844]
[1719871553104,0.00084,63188.0,63187.0,1.36802776]
[1719871553310,0.00084,63188.0,63187.0,1.38505898]
[1719871553486,0.00084,63188.0,63187.0,1.43253392]
[1719871553693,0.00084,63188.0,63187.0,1.38505898]
[1719871553901,0.00084,63188.0,63187.0,1.43253331]
[1719871554771,0.04058932,63188.0,63187.0,1.43253331]
[1719871555035,0.04058932,63188.0,63187.0,1.36803331]
[1719871555241,0.33641621,63188.0,63187.0,1.38505898]
[1719871555403,0.33641621,63188.0,63187.0,1.43253331]
[1719871555637,0.33651621,63188.0,63187.0,1.43253331]
[1719871556035,0.33661621,63188.0,63187.0,1.43253331]
[1719871556588,0.33661621,63188.0,63187.0,1.43263331]
[1719871557127,0.04078932,63188.0,63187.0,1.43263331]
[1719871557354,0.33661621,63188.0,63187.0,1.43263331]
[1719871557553,0.04078932,63188.0,63187.0,1.43263331]
[1719871558179,0.04078932,63188.0,63187.0,1.38515898]
[1719871558581,0.00104,63188.0,63187.0,1.38515898]
[1719871559023,0.04078932,63188.0,63187.0,1.38515898]
[1719871559541,0.33661621,63188.0,63187.0,1.38515898]
[1719871560102,0.33661621,63188.0,63187.0,1.45640146]
[1719871562244,0.33661621,63188.0,63187.0,1.38515898]
[1719871562412,0.33661621,63188.0,63187.0,1.45641388]
[1719871564441,0.33661621,63188.0,63187.0,1.32065898]
[1719871564644,0.33661621,63188.0,63187.0,1.38515898]
[1719871564844,0.33661621,63188.0,63187.0,1.43266479]
[1719871564845,0.36585867,63188.0,63187.0,1.43266479]
[1719871565284,0.36585867,63188.0,63187.0,1.38515898]
[1719871565461,0.36585866,63188.0,63187.0,1.38515898]
[1719871565667,0.36585866,63188.0,63187.0,1.32158298]
[1719871565861,0.33661621,63188.0,63187.0,1.38608298]
[1719871566067,0.36585101,63188.0,63187.0,1.38608298]
[1719871566692,0.07002412,63188.0,63187.0,1.38608298]
[1719871566895,0.0302748,63188.0,63187.0,1.45735059]
[1719871567288,0.36585101,63188.0,63187.0,1.45735059]
[1719871567616,0.07002412,63188.0,63187.0,1.45735059]
[1719871568583,0.07002835,63188.0,63187.0,1.45735914]
[1719871570816,0.07002835,63188.0,63187.0,1.38608298]
[1719871571284,0.42805524,63188.0,63187.0,1.38608298]
[1719871571909,0.39881621,63188.0,63187.0,1.38108298]
[1719871572083,0.42804697,63188.0,63187.0,1.38108298]
[1719871572284,0.42804697,63188.0,63187.0,1.31658298]
[1719871572490,0.42804697,63188.0,63187.0,1.38108298]
[1719871573499,0.42804697,63188.0,63187.0,1.45236159]
[1719871573706,0.36584697,63188.0,63187.0,1.45236159]
[1719871573909,0.50284697,63188.0,63187.0,1.02458417]
[1719871574268,0.5355138,63188.0,63187.0,1.02458417]
[1719871576845,0.49587789,63188.0,63187.0,0.66054298]
[1719871576977,0.49587789,63188.0,63187.0,0.029024]
[1719871576978,0.8614541,63188.0,63187.0,0.029024]
[1719871577389,0.8614541,63188.0,63187.0,0.187284]
[1719871578016,0.8614541,63188.0,63187.0,0.159284]
[1719871578443,0.86158156,63188.0,63187.0,0.159284]
[1719871578894,0.86156693,63188.0,63187.0,0.159284]
[1719871580757,1.33633893,63188.0,63187.0,0.001024]
[1719871580955,1.65285393,63188.0,63187.0,0.001024]
[1719871581986,1.33633893,63188.0,63187.0,0.001024]
[1719871584055,1.33638932,63188.0,63187.0,0.001024]
[1719871584590,1.30699534,63188.0,63187.0,0.001024]
[1719871585995,1.33638932,63188.0,63187.0,0.001024]
[1719871588581,1.30699534,63188.0,63187.0,0.001024]
[1719871592746,2.40235905,63188.0,63187.0,0.001024]
[1719871592936,2.27679767,63188.0,63187.0,0.001024]
[1719871593403,1.97679767,63188.0,63187.0,0.001024]
[1719871593575,1.94002534,63188.0,63187.0,0.001024]
[1719871593913,2.00452534,63188.0,63187.0,0.001024]
[1719871594110,2.00452534,63188.0,63187.0,0.002024]
[1719871594776,2.00652534,63188.0,63187.0,0.002024]
[1719871595084,0.83422334,63188.0,63187.0,0.003024]
[1719871595832,0.83222334,63188.0,63187.0,0.002024]
[1719871596048,0.83422334,63188.0,63187.0,0.003024]
[1719871596805,0.83422334,63188.0,63187.0,0.002024]
[1719871597107,0.83422334,63188.0,63187.0,0.003024]
[1719871597251,0.83222334,63188.0,63187.0,0.002024]
[1719871597667,0.83422334,63188.0,63187.0,0.002024]
[1719871598219,0.86344002,63188.0,63187.0,0.003024]
[1719871598697,0.86344091,63188.0,63187.0,0.003024]
[1719871599084,0.86344088,63188.0,63187.0,0.003024]
[1719871599719,1.02169788,63188.0,63187.0,0.003024]
[1719871600098,1.08619788,63188.0,63187.0,0.003024]
[1719871600295,1.40271288,63188.0,63187.0,0.003024]
[1719871601853,1.37349534,63188.0,63187.0,0.003024]
[1719871602068,1.40271413,63188.0,63187.0,0.003024]
[1719871603734,1.44927938,63188.0,63187.0,0.003024]
[1719871605232,1.42007479,63188.0,63187.0,0.003024]
[1719871605468,1.44930712,63188.0,63187.0,0.003024]
[1719871607257,2.28144952,63188.0,63187.0,0.003024]
[1719871607918,2.41911581,63188.0,63187.0,0.003024]
[1719871608591,2.38991606,63188.0,63187.0,0.003024]
[1719871608920,2.41918343,63188.0,63187.0,0.003024]
[1719871612033,2.41923427,63188.0,63187.0,0.003024]
[1719871612482,2.41923429,63188.0,63187.0,0.003024]
[1719871615371,2.41923119,63188.0,63187.0,0.003024]
[1719871618491,2.41924809,63188.0,63187.0,0.003024]
[1719871621057,3.31201102,63188.0,63187.0,0.003024]
[1719871621268,3.86204145,63188.0,63187.0,0.003024]
[1719871621697,3.74373126,63188.0,63187.0,0.003024]
[1719871622486,3.74173126,63188.0,63187.0,0.002024]
[1719871622813,3.74373126,63188.0,63187.0,0.002024]
[1719871623053,3.75173126,63188.0,63187.0,0.003024]
[1719871624139,3.72216709,63188.0,63187.0,0.003024]
[1719871624352,3.75140461,63188.0,63187.0,0.003024]
[1719871624564,3.64412137,63188.0,63187.0,0.003024]
[1719871624771,3.75147111,63188.0,63187.0,0.003024]
[1719871626082,3.70411727,63188.0,63187.0,0.003024]
[1719871627302,3.70412943,63188.0,63187.0,0.003024]
[1719871627985,3.76947089,63188.0,63187.0,0.003024]
[1719871629563,3.70497089,63188.0,63187.0,0.003024]
[1719871629749,3.76947089,63188.0,63187.0,0.003024]
[1719871630613,3.76966873,63188.0,63187.0,0.003024]
[1719871633190,3.70516873,63188.0,63187.0,0.003024]
[1719871633408,3.76966873,63188.0,63187.0,0.003024]
[1719871633844,3.76979458,63188.0,63187.0,0.003024]
[1719871637178,3.59676753,63188.0,63187.0,0.003024]
[1719871637394,3.76952113,63188.0,63187.0,0.003024]
[1719871637627,3.59676753,63188.0,63187.0,0.003024]
[1719871637853,3.76952128,63188.0,63187.0,0.003024]
[1719871640365,3.76913339,63188.0,63187.0,0.003024]
[1719871642483,4.08564839,63188.0,63187.0,0.003024]
[1719871642692,4.18120805,63188.0,63187.0,0.003024]
[1719871643334,4.17320805,63188.0,63187.0,0.002024]
[1719871643527,3.99884219,63188.0,63187.0,0.001024]
[1719871643704,4.17169323,63188.0,63187.0,0.001024]
[1719871643921,4.18769323,63188.0,63187.0,0.003024]
[1719871644285,4.17969323,63188.0,63187.0,0.002024]
[1719871644904,3.79867823,63188.0,63187.0,0.002024]
[1719871645103,3.86317823,63188.0,63187.0,0.002024]
[1719871645343,3.77561857,63188.0,63187.0,0.003024]
[1719871646772,3.77558623,63188.0,63187.0,0.003024]
[1719871648333,3.60276753,63188.0,63187.0,0.003024]
[1719871648536,3.77541587,63188.0,63187.0,0.003024]
[1719871650198,3.77525062,63188.0,63187.0,0.003024]
[1719871650612,3.60276753,63188.0,63187.0,0.003024]
[1719871650834,3.77525078,63188.0,63187.0,0.003024]
[1719871651725,3.9172493,63188.0,63187.0,0.003024]
[1719871653402,4.58680584,63188.0,63187.0,0.003024]
[1719871653606,5.00402691,63188.0,63187.0,0.003024]
[1719871653811,4.84422611,63188.0,63187.0,0.003024]
[1719871654297,5.00399354,63188.0,63187.0,0.003024]
[1719871654486,4.84422611,63188.0,63187.0,0.003024]
[1719871656187,5.00397935,63188.0,63187.0,0.003024]
[1719871656410,4.70397935,63188.0,63187.0,0.003024]
[1719871656759,4.54557803,63188.0,63187.0,0.003024]
[1719871657310,4.70532591,63188.0,63187.0,0.003024]
[1719871658665,3.19416851,63182.0,63181.0,0.000924]
[1719871658890,3.807456,63182.0,63181.0,0.000924]
[1719871659110,3.83995641,63182.0,63181.0,0.000924]
[1719871659813,3.90532288,63182.0,63181.0,0.000924]
[1719871660040,3.9040793,63182.0,63181.0,0.002924]
[1719871660261,3.93335924,63182.0,63181.0,0.002924]
[1719871661612,4.09569295,63182.0,63181.0,0.002924]
[1719871661892,4.09559295,63182.0,63181.0,0.002924]
[1719871662108,4.08159295,63182.0,63181.0,0.001924]
[1719871662335,3.91925924,63182.0,63181.0,0.000924]
[1719871662803,3.93325924,63182.0,63181.0,0.000924]
[1719871663282,3.9332367,63182.0,63181.0,0.000924]
[1719871663736,3.93338869,63182.0,63181.0,0.000924]
[1719871664765,3.79138704,63182.0,63181.0,0.000924]
[1719871664900,3.95372075,63182.0,63181.0,0.000924]
[1719871665739,3.79138704,63182.0,63181.0,0.000924]
[1719871666712,3.79137581,63182.0,63181.0,0.000924]
[1719871667115,3.79127581,63182.0,63181.0,0.000924]
[1719871669699,3.79112345,63182.0,63181.0,0.000924]
[1719871670097,3.79102345,63182.0,63181.0,0.000924]
[1719871671349,3.80928716,63182.0,63181.0,0.000924]
[1719871673041,3.80925602,63182.0,63181.0,0.000924]
[1719871674966,3.80925602,63182.0,63181.0,0.001024]
[1719871676123,3.28681102,63182.0,63181.0,0.001024]
[1719871676320,3.35127802,63182.0,63181.0,0.146724]
[1719871676803,3.1783053,63182.0,63181.0,0.146724]
[1719871677051,3.35127697,63182.0,63181.0,0.146724]
[1719871677423,3.35127697,63182.0,63181.0,0.001024]
[1719871679469,3.35132572,63182.0,63181.0,0.001024]
[1719871681901,3.28682572,63182.0,63181.0,0.001024]
[1719871682102,3.3513441,63182.0,63181.0,0.001024]
[1719871684347,3.3513441,63182.0,63181.0,0.083624]
[1719871684348,2.5200441,63182.0,63181.0,0.083624]
[1719871684506,2.5845441,63182.0,63181.0,0.145424]
[1719871684934,2.51916399,63182.0,63181.0,0.145424]
[1719871685137,2.48988571,63182.0,63181.0,0.145424]
[1719871685337,2.51997663,63182.0,63181.0,0.145424]
[1719871685541,2.50597663,63182.0,63181.0,0.145424]
[1719871685924,2.49197663,63182.0,63181.0,0.145424]
[1719871686330,2.50597663,63182.0,63181.0,0.146424]
[1719871686703,2.80597663,63182.0,63181.0,0.146424]
[1719871686906,2.81997663,63182.0,63181.0,0.147424]
[1719871687325,2.92439972,63182.0,63181.0,0.146424]
[1719871687545,2.62439972,63182.0,63181.0,0.146424]
[1719871688203,2.59194487,63182.0,63181.0,0.146424]
[1719871688428,2.52992839,63182.0,63181.0,0.147424]
[1719871688654,2.60585766,63182.0,63181.0,0.147424]
[1719871689107,2.90585635,63182.0,63181.0,0.147424]
[1719871689332,2.93795942,63182.0,63181.0,0.147424]
[1719871689547,2.93795202,63182.0,63181.0,0.147424]
[1719871689991,2.81953766,63182.0,63181.0,0.147424]
[1719871690232,2.51953766,63182.0,63181.0,0.147424]
[1719871690448,2.93794837,63182.0,63181.0,0.147424]
[1719871690900,2.81953766,63182.0,63181.0,0.147424]
[1719871691300,2.93794698,63182.0,63181.0,0.147424]
[1719871691796,2.93809231,63182.0,63181.0,0.147424]
[1719871692017,2.81968299,63182.0,63181.0,0.147424]
[1719871692470,2.93809151,63182.0,63181.0,0.147424]
[1719871692899,2.81968299,63182.0,63181.0,0.147424]
[1719871693357,2.9389311,63182.0,63181.0,0.147424]
[1719871694726,2.82052299,63182.0,63181.0,0.147424]
[1719871695207,2.93894304,63182.0,63181.0,0.147424]
[1719871695816,2.82053521,63182.0,63181.0,0.147424]
[1719871696213,2.93894106,63182.0,63181.0,0.147424]
[1719871696744,2.82053521,63182.0,63181.0,0.147424]
[1719871696975,2.93894119,63182.0,63181.0,0.147424]
[1719871698392,2.93894989,63182.0,63181.0,0.147424]
[1719871698599,2.63894989,63182.0,63181.0,0.147424]
[1719871698807,2.63894989,63182.0,63181.0,0.1431575]
[1719871699173,2.57444989,63182.0,63181.0,0.1431575]
[1719871699369,2.63894989,63182.0,63181.0,0.1431575]
[1719871701647,2.63895231,63182.0,63181.0,0.1431575]
[1719871702056,2.53075216,63182.0,63181.0,0.1431575]
[1719871702260,2.64023412,63182.0,63181.0,0.1432575]
[1719871702444,2.57573412,63182.0,63181.0,0.1432575]
[1719871702638,2.64023412,63182.0,63181.0,0.1432575]
[1719871704467,2.94023412,63182.0,63181.0,0.1432575]
[1719871704674,2.94023539,63182.0,63181.0,0.1432575]
[1719871706207,2.94023539,63182.0,63181.0,0.0814575]
[1719871707059,2.94023539,63182.0,63181.0,0.0021]
[1719871708045,2.94024866,63182.0,63181.0,0.0021]
[1719871708610,2.7123453,63182.0,63181.0,0.0021]
[1719871710006,2.90696561,63182.0,63181.0,0.0021]
[1719871711363,3.51409932,63182.0,63181.0,0.0021]
[1719871711561,3.13941302,63182.0,63181.0,0.0021]
[1719871711795,3.20391302,63182.0,63181.0,0.0021]
[1719871712677,3.19045568,63182.0,63181.0,0.0021]
[1719871712852,3.1571453,63182.0,63181.0,0.0021]
[1719871713016,3.0926453,63182.0,63181.0,0.0021]
[1719871713220,3.1571453,63182.0,63181.0,0.0021]
[1719871714233,3.0943453,63182.0,63181.0,0.0021]
[1719871717237,2.7943453,63182.0,63181.0,0.0021]
[1719871718496,3.0943453,63182.0,63181.0,0.0021]
[1719871722900,2.7298453,63182.0,63181.0,0.0021]
[1719871723082,3.0943453,63182.0,63181.0,0.0021]
[1719871724278,2.7943453,63182.0,63181.0,0.0021]
[1719871724891,2.7943453,63182.0,63181.0,0.003024]
[1719871725319,3.0943453,63182.0,63181.0,0.003024]
[1719871726484,3.12757849,63182.0,63181.0,0.003024]
[1719871727903,3.04557849,63182.0,63181.0,0.003024]
[1719871728316,2.74557849,63182.0,63181.0,0.003024]
[1719871729452,2.44557849,63182.0,63181.0,0.003024]
[1719871729652,2.12903349,63182.0,63181.0,0.003024]
[1719871729881,2.42903349,63182.0,63181.0,0.003024]
[1719871730236,2.12903478,63182.0,63181.0,0.003024]
[1719871731589,2.5707144,63182.0,63181.0,0.003024]
[1719871732916,2.50521338,63182.0,63181.0,0.003024]
[1719871733661,2.50505016,63182.0,63181.0,0.003024]
[1719871733856,2.20505016,63182.0,63181.0,0.003024]
[1719871734087,2.20497693,63182.0,63181.0,0.003024]
[1719871737041,2.50497693,63182.0,63181.0,0.003024]
[1719871738146,2.20497693,63182.0,63181.0,0.003024]
[1719871738962,1.31504795,63182.0,63181.0,0.003024]
[1719871739122,1.34504795,63182.0,63181.0,0.144424]
[1719871739320,1.72609295,63182.0,63181.0,0.144424]
[1719871740118,1.65030936,63182.0,63181.0,0.144424]
[1719871740335,1.72653932,63182.0,63181.0,0.144424]
[1719871740542,1.18722232,63182.0,63181.0,0.144424]
[1719871740746,1.25172232,63182.0,63181.0,0.144424]
[1719871741504,1.25172232,63182.0,63181.0,0.619249]
[1719871741505,0.92408215,63182.0,63181.0,0.619249]
[1719871741738,0.92408215,63182.0,63181.0,0.935799]
[1719871741739,0.80556557,63182.0,63181.0,0.935799]
[1719871742291,0.80556557,63182.0,63181.0,0.934799]
[1719871742292,0.79156557,63182.0,63181.0,0.934799]
[1719871742493,0.71533561,63182.0,63181.0,0.934799]
[1719871742706,0.75468896,63182.0,63181.0,0.934799]
[1719871742953,0.75468896,63182.0,63181.0,0.935799]
[1719871743124,0.75268896,63182.0,63181.0,0.934799]
[1719871743522,0.70595391,63182.0,63181.0,0.935799]
[1719871743729,0.71895391,63182.0,63181.0,0.935799]
[1719871745665,0.68955692,63182.0,63181.0,0.935799]
[1719871746045,0.71894034,63182.0,63181.0,0.935799]
[1719871746366,0.71894212,63182.0,63181.0,0.935799]
[1719871748876,0.71893603,63182.0,63181.0,0.935799]
[1719871751383,0.74893603,63182.0,63181.0,0.935799]
[1719871752325,0.74893286,63182.0,63181.0,0.935799]
[1719871755556,0.71893573,63182.0,63181.0,0.935799]
[1719871755966,0.74893573,63182.0,63181.0,0.935799]
[1719871756176,0.71893573,63182.0,63181.0,0.935799]
[1719871756489,0.74893573,63182.0,63181.0,0.935799]
[1719871757105,0.71893573,63182.0,63181.0,0.935799]
[1719871758622,0.68955692,63182.0,63181.0,0.935799]
[1719871758828,0.71894153,63182.0,63181.0,0.935799]
[1719871759273,0.71894204,63182.0,63181.0,0.935799]
[1719871764537,0.74894204,63182.0,63181.0,0.935799]
[1719871765197,0.71955692,63182.0,63181.0,0.935799]
[1719871765339,0.79570443,63182.0,63181.0,0.935799]
[1719871766505,0.79570443,63182.0,63181.0,0.869799]
[1719871767729,0.79570443,63182.0,63181.0,0.794399]
[1719871768367,0.71955692,63182.0,63181.0,0.794399]
[1719871768494,0.79572208,63182.0,63181.0,0.794399]
[1719871769817,0.83255881,63182.0,63181.0,0.477849]
[1719871771796,0.83256538,63182.0,63181.0,0.477849]
[1719871771986,0.91576538,63182.0,63181.0,0.003024]
[1719871772127,0.9157564,63182.0,63181.0,0.003024]
[1719871773411,0.91576994,63182.0,63181.0,0.003024]
[1719871775020,0.83959365,63182.0,63181.0,0.003024]
[1719871775221,0.91576706,63182.0,63181.0,0.003024]
[1719871775401,0.91576706,63182.0,63181.0,0.00137164]
[1719871776050,0.97936706,63182.0,63181.0,0.00137164]
[1719871777491,1.44518406,63182.0,63181.0,0.00137164]
[1719871778241,1.36901065,63182.0,63181.0,0.00137164]
[1719871778469,1.44523436,63182.0,63181.0,0.00137164]
[1719871780944,1.44523436,63182.0,63181.0,0.00147164]
[1719871785095,1.44519718,63182.0,63181.0,0.00147164]
[1719871785540,1.41579268,63182.0,63181.0,0.00147164]
[1719871785713,1.44522121,63182.0,63181.0,0.00147164]
[1719871786666,1.50972121,63182.0,63181.0,0.00147164]
[1719871787301,1.38512121,63182.0,63181.0,0.00147164]
[1719871787478,1.44962121,63182.0,63181.0,0.00147164]
[1719871788078,1.37341065,63182.0,63181.0,0.00147164]
[1719871788324,1.44964325,63182.0,63181.0,0.00147164]
[1719871788735,1.44964325,63182.0,63181.0,0.00239564]
[1719871790122,2.46737223,63182.0,63181.0,0.00239564]
[1719871790325,2.74178373,63182.0,63181.0,0.00239564]
[1719871791431,2.74279501,63182.0,63181.0,0.00239564]
[1719871793817,3.04279501,63182.0,63181.0,0.00239564]
[1719871794779,3.04280414,63182.0,63181.0,0.00239564]
[1719871795110,2.97830414,63182.0,63181.0,0.00239564]
[1719871795349,3.04280414,63182.0,63181.0,0.00239564]
[1719871796487,3.03080414,63182.0,63181.0,0.002024]
[1719871796685,3.04480414,63182.0,63181.0,0.003024]
[1719871796891,3.24480414,63182.0,63181.0,0.002024]
[1719871797066,3.23180414,63182.0,63181.0,0.001024]
[1719871797429,3.24580414,63182.0,63181.0,0.001024]
[1719871797847,3.12113963,63182.0,63181.0,0.001024]
[1719871798043,3.23194094,63182.0,63181.0,0.001024]
[1719871798265,3.24594094,63182.0,63181.0,0.001024]
[1719871798489,3.25991847,63182.0,63181.0,0.001024]
[1719871800850,3.25996937,63182.0,63181.0,0.001024]
[1719871800995,3.57651437,63182.0,63181.0,0.001024]
[1719871803609,3.57676073,63182.0,63181.0,0.001024]
[1719871806922,3.57662637,63182.0,63181.0,0.001024]
[1719871810093,3.46568463,63182.0,63181.0,0.001024]
[1719871810275,3.54705891,63182.0,63181.0,0.001024]
[1719871810440,3.6424022,63182.0,63181.0,0.001024]
[1719871810608,3.64240228,63182.0,63181.0,0.001024]
[1719871812245,3.80473599,63182.0,63181.0,0.001024]
[1719871813152,3.74028314,63182.0,63181.0,0.001024]
[1719871813379,3.80478314,63182.0,63181.0,0.001024]
[1719871816387,3.66242294,63182.0,63181.0,0.001024]
[1719871816595,3.80478806,63182.0,63181.0,0.001024]
[1719871819053,3.64245435,63182.0,63181.0,0.001024]
[1719871819841,3.50011209,63182.0,63181.0,0.001024]
[1719871820010,3.64246807,63182.0,63181.0,0.001024]
[1719871822364,3.89383527,63182.0,63181.0,0.001024]
[1719871822562,3.75154113,63182.0,63181.0,0.001024]
[1719871822771,3.89383527,63182.0,63181.0,0.001024]
[1719871822991,3.57475769,63182.0,63181.0,0.001024]
[1719871823194,3.89412713,63182.0,63181.0,0.001024]
[1719871823450,3.82962713,63182.0,63181.0,0.001024]
[1719871823700,3.8296411,63182.0,63181.0,0.001024]
[1719871823942,3.8941411,63182.0,63181.0,0.001024]
[1719871826253,3.89422575,63182.0,63181.0,0.001024]
[1719871826470,3.7518973,63182.0,63181.0,0.001024]
[1719871826691,3.89423044,63182.0,63181.0,0.001024]
[1719871828164,3.95189879,63182.0,63181.0,0.001024]
[1719871828306,3.80956565,63182.0,63181.0,0.001024]
[1719871829493,3.66196729,63182.0,63181.0,0.001024]
[1719871829637,3.80814114,63182.0,63181.0,0.001024]
[1719871830043,3.63242604,63182.0,63181.0,0.001024]
[1719871830262,3.14786151,63177.0,63176.0,0.000924]
[1719871830445,3.76233885,63177.0,63176.0,0.000924]
[1719871830645,3.79483483,63177.0,63176.0,0.000924]
[1719871830944,4.22047789,63177.0,63176.0,0.000924]
[1719871831204,4.38061756,63177.0,63176.0,0.000924]
[1719871831384,4.22047789,63177.0,63176.0,0.000924]
[1719871831589,4.28613343,63177.0,63176.0,0.000924]
[1719871831897,4.36456747,63177.0,63176.0,0.000924]
[1719871832721,4.30019094,63177.0,63176.0,0.000924]
[1719871833100,4.38884861,63177.0,63176.0,0.000924]
[1719871833504,4.21343393,63177.0,63176.0,0.000924]
[1719871835016,3.97287932,63177.0,63176.0,0.000924]
[1719871835226,3.93150665,63177.0,63176.0,0.000924]
[1719871838392,3.89808563,63177.0,63176.0,0.000924]
[1719871838571,3.93136675,63177.0,63176.0,0.000924]
[1719871838773,3.89808584,63177.0,63176.0,0.000924]
[1719871838982,3.93136701,63177.0,63176.0,0.000924]
[1719871840477,3.93146701,63177.0,63176.0,0.000924]
[1719871841742,4.05735659,63177.0,63176.0,0.000924]
[1719871841951,4.15636165,63177.0,63176.0,0.000924]
[1719871842152,4.18503327,63177.0,63176.0,0.000924]
[1719871844321,4.02269956,63177.0,63176.0,0.000924]
[1719871845131,3.88010162,63177.0,63176.0,0.000924]
[1719871845346,4.02204395,63177.0,63176.0,0.000924]
[1719871848447,4.02169853,63177.0,63176.0,0.000924]
[1719871848699,3.95719853,63177.0,63176.0,0.000924]
[1719871848948,3.84727788,63177.0,63176.0,0.000924]
[1719871849159,4.0216991,63177.0,63176.0,0.000924]
[1719871849361,4.18403281,63177.0,63176.0,0.000924]
[1719871851685,4.18441703,63177.0,63176.0,0.000924]
[1719871852247,4.18525703,63177.0,63176.0,0.000924]
[1719871854729,4.01045159,63177.0,63176.0,0.000924]
[1719871854941,4.18500376,63177.0,63176.0,0.000924]
[1719871855347,4.57929466,63177.0,63176.0,0.000924]
[1719871855542,4.60229466,63177.0,63176.0,0.000924]
[1719871858262,4.60031332,63177.0,63176.0,0.000924]
[1719871858843,4.43797961,63177.0,63176.0,0.000924]
[1719871860867,4.18768788,63177.0,63176.0,0.000924]
[1719871861092,4.43792005,63177.0,63176.0,0.000924]
[1719871861407,4.18768788,63177.0,63176.0,0.000924]
[1719871861604,4.43803314,63177.0,63176.0,0.000924]
[1719871861811,4.47286461,63177.0,63176.0,0.000924]
[1719871863004,4.47276461,63177.0,63176.0,0.000924]
[1719871863625,4.63284967,63177.0,63176.0,0.000924]
[1719871863826,4.63278417,63177.0,63176.0,0.000924]
[1719871863982,4.47269866,63177.0,63176.0,0.000924]
[1719871866638,4.40819866,63177.0,63176.0,0.000924]
[1719871866836,4.47269866,63177.0,63176.0,0.000924]
[1719871867035,4.47248004,63177.0,63176.0,0.000924]
[1719871870264,4.36403811,63177.0,63176.0,0.000924]
[1719871870464,4.47293855,63177.0,63176.0,0.000924]
[1719871871478,4.47283855,63177.0,63176.0,0.000924]
[1719871872478,4.40833855,63177.0,63176.0,0.000924]
[1719871872695,2.88593351,63166.0,63165.0,0.0666]
[1719871872897,2.88593351,63166.0,63164.0,0.0803]
[1719871872898,1.93606251,63165.0,63164.0,0.0803]
[1719871873176,3.50094796,63165.0,63164.0,0.0803]
[1719871873583,3.53711705,63165.0,63164.0,0.0803]
[1719871873928,3.53711616,63165.0,63164.0,0.0803]
[1719871874171,3.3947031,63165.0,63164.0,0.0803]
[1719871874590,3.3987031,63165.0,63164.0,0.0803]
[1719871875393,3.4037031,63165.0,63164.0,0.0803]
[1719871876748,3.43565254,63165.0,63164.0,0.0803]
[1719871876954,3.40380259,63165.0,63164.0,0.0803]
[1719871879647,3.54627282,63165.0,63164.0,0.0803]
[1719871879847,3.37195267,63165.0,63164.0,0.0803]
[1719871880053,3.54600867,63165.0,63164.0,0.0803]
[1719871880494,3.40353694,63165.0,63164.0,0.0803]
[1719871880889,3.54600607,63165.0,63164.0,0.0803]
[1719871882448,3.40353694,63165.0,63164.0,0.0803]
[1719871883478,3.54600344,63165.0,63164.0,0.0803]
[1719871883683,3.61050344,63165.0,63164.0,0.0803]
[1719871884482,3.31050344,63165.0,63164.0,0.0803]
[1719871884692,2.55140594,63165.0,63164.0,0.1453]
[1719871885608,2.85140594,63165.0,63164.0,0.1453]
[1719871886415,2.67816011,63165.0,63164.0,0.1453]
[1719871886647,2.55117247,63165.0,63164.0,0.1453]
[1719871886851,2.85117247,63165.0,63164.0,0.1453]
[1719871887205,2.8511635,63165.0,63164.0,0.1453]
[1719871888645,2.8511635,63165.0,63164.0,0.1454]